[Event "December 19 Late 2023"]
[Site "https://www.chess.com"]
[Date "2023.12.19"]
[Round "7"]
[White "Rogov, Matfey"]
[Black "Boyer, Mahel"]
[Result "1-0"]
[Board "42"]
[TimeControl "180+1"]
[WhiteFideId "44191308"]
[BlackFideId "45102422"]
[WhiteElo "2057"]
[BlackElo "2449"]
[WhiteTeam "RUS"]
[BlackTeam "FRA"]
[WhiteClock "0:00:21"]
[BlackClock "0:00:13"]

1. Nc3 {[%clk 0:03:00]}  d5 {[%clk 0:02:59]} 2. d4 {[%clk 0:03:00]}  Bf5 {[%clk 0:02:58]} 3. f3 {[%clk 0:02:56]}  Bg6 {[%clk 0:02:56]} 4. h4 {[%clk 0:02:53]}  Nf6 {[%clk 0:02:52]} 5. Bg5 {[%clk 0:02:50]}  h6 {[%clk 0:02:50]} 6. Bxf6 {[%clk 0:02:49]}  exf6 {[%clk 0:02:51]} 7. h5 {[%clk 0:02:49]}  Bh7 {[%clk 0:02:51]} 8. e3 {[%clk 0:02:46]}  Bd6 {[%clk 0:02:42]} 9. f4 {[%clk 0:02:39]}  c6 {[%clk 0:02:37]} 10. Bd3 {[%clk 0:02:38]}  Qe7 {[%clk 0:02:37]} 11. Rh3 {[%clk 0:02:34]}  Bxf4 {[%clk 0:02:32]} 12. Bxh7 {[%clk 0:02:02]}  Bxe3 {[%clk 0:02:30]} 13. Nge2 {[%clk 0:01:57]}  Bg5 {[%clk 0:02:12]} 14. Bf5 {[%clk 0:01:53]}  Na6 {[%clk 0:02:10]} 15. Qd3 {[%clk 0:01:40]}  Nb4 {[%clk 0:02:09]} 16. Qf3 {[%clk 0:01:35]}  O-O {[%clk 0:02:09]} 17. a3 {[%clk 0:01:33]}  Na6 {[%clk 0:02:10]} 18. Kf1 {[%clk 0:01:32]}  Rfe8 {[%clk 0:02:09]} 19. Nf4 {[%clk 0:01:26]}  Nc7 {[%clk 0:02:08]} 20. Qf2 {[%clk 0:01:21]}  Qd6 {[%clk 0:02:07]} 21. Rf3 {[%clk 0:01:14]}  Re7 {[%clk 0:02:07]} 22. Nh3 {[%clk 0:01:12]}  Rae8 {[%clk 0:02:05]} 23. Nxg5 {[%clk 0:01:11]}  fxg5 {[%clk 0:02:01]} 24. g4 {[%clk 0:01:09]}  b5 {[%clk 0:01:40]} 25. Kg2 {[%clk 0:01:08]}  a5 {[%clk 0:01:41]} 26. Qg3 {[%clk 0:01:03]}  Qd8 {[%clk 0:01:33]} 27. Raf1 {[%clk 0:00:53]}  b4 {[%clk 0:01:33]} 28. axb4 {[%clk 0:00:54]}  axb4 {[%clk 0:01:34]} 29. Nd1 {[%clk 0:00:50]}  Nb5 {[%clk 0:01:34]} 30. c3 {[%clk 0:00:46]}  bxc3 {[%clk 0:01:33]} 31. bxc3 {[%clk 0:00:47]}  Qa5 {[%clk 0:01:25]} 32. Bd3 {[%clk 0:00:45]}  Nd6 {[%clk 0:01:25]} 33. Qxd6 {[%clk 0:00:44]}  Qa1 {[%clk 0:01:07]} 34. R3f2 {[%clk 0:00:42]}  Qc1 {[%clk 0:01:00]} 35. Qg3 {[%clk 0:00:39]}  f6 {[%clk 0:00:57]} 36. Bg6 {[%clk 0:00:36]}  Ra8 {[%clk 0:00:57]} 37. Qd3 {[%clk 0:00:32]}  Kf8 {[%clk 0:00:51]} 38. Re2 {[%clk 0:00:30]}  Raa7 {[%clk 0:00:50]} 39. Rfe1 {[%clk 0:00:27]}  Qf4 {[%clk 0:00:45]} 40. Qg3 {[%clk 0:00:23]}  f5 {[%clk 0:00:05]} 41. Qxf4 {[%clk 0:00:21]}  gxf4 {[%clk 0:00:06]} 42. Rxe7 {[%clk 0:00:21]}  Rxe7 {[%clk 0:00:06]} 43. Rxe7 {[%clk 0:00:21]}  Kxe7 {[%clk 0:00:07]} 44. gxf5 {[%clk 0:00:22]}  Kf6 {[%clk 0:00:08]} 45. Kf3 {[%clk 0:00:22]}  c5 {[%clk 0:00:09]} 46. dxc5 {[%clk 0:00:22]}  Kg5 {[%clk 0:00:08]} 47. Nf2 {[%clk 0:00:22]}  d4 {[%clk 0:00:09]} 48. Ne4+ {[%clk 0:00:22]}  Kh4 {[%clk 0:00:10]} 49. cxd4 {[%clk 0:00:21]}  Kh3 {[%clk 0:00:11]} 50. c6 {[%clk 0:00:21]}  Kh4 {[%clk 0:00:12]} 51. c7 {[%clk 0:00:21]}  Kh3 {[%clk 0:00:13]} 52. c8=Q {[%clk 0:00:21]}  Kh2 {[%clk 0:00:13]} 53. Qc2+ {[%clk 0:00:21]} 1-0

[Event "December 19 Late 2023"]
[Site "https://www.chess.com"]
[Date "2023.12.19"]
[Round "7"]
[White "Yagupov, Igor"]
[Black "Sun, Rick"]
[Result "0-1"]
[Board "43"]
[TimeControl "180+1"]
[WhiteFideId "4113632"]
[BlackFideId "30909481"]
[WhiteElo "2179"]
[BlackElo "2169"]
[WhiteTeam "RUS"]
[BlackTeam "USA"]
[WhiteClock "0:00:00"]
[BlackClock "0:00:03"]

1. e4 {[%clk 0:03:00]}  d6 {[%clk 0:03:00]} 2. d4 {[%clk 0:03:00]}  Nf6 {[%clk 0:03:01]} 3. Nc3 {[%clk 0:03:00]}  Nbd7 {[%clk 0:03:02]} 4. Nf3 {[%clk 0:02:59]}  e5 {[%clk 0:03:02]} 5. Bc4 {[%clk 0:02:59]}  Be7 {[%clk 0:03:03]} 6. O-O {[%clk 0:02:58]}  O-O {[%clk 0:03:03]} 7. a4 {[%clk 0:02:57]}  c6 {[%clk 0:03:04]} 8. Re1 {[%clk 0:02:56]}  Qc7 {[%clk 0:03:04]} 9. h3 {[%clk 0:02:52]}  h6 {[%clk 0:03:04]} 10. Ba2 {[%clk 0:02:47]}  Re8 {[%clk 0:03:03]} 11. dxe5 {[%clk 0:02:38]}  dxe5 {[%clk 0:03:02]} 12. Nh4 {[%clk 0:02:37]}  Nf8 {[%clk 0:03:02]} 13. Qf3 {[%clk 0:02:33]}  Be6 {[%clk 0:03:01]} 14. Nf5 {[%clk 0:02:31]}  Bxa2 {[%clk 0:02:51]} 15. Rxa2 {[%clk 0:02:29]}  Ne6 {[%clk 0:02:51]} 16. Be3 {[%clk 0:02:17]}  Rad8 {[%clk 0:02:46]} 17. Qg3 {[%clk 0:02:14]}  Kh7 {[%clk 0:02:34]} 18. Raa1 {[%clk 0:02:06]}  Bf8 {[%clk 0:02:05]} 19. Qh4 {[%clk 0:01:56]}  g5 {[%clk 0:01:00]} 20. Qg3 {[%clk 0:01:47]}  Nh5 {[%clk 0:00:43]} 21. Qf3 {[%clk 0:01:46]}  Nhf4 {[%clk 0:00:43]} 22. g3 {[%clk 0:01:40]}  Nxh3+ {[%clk 0:00:29]} 23. Kg2 {[%clk 0:01:39]}  Nhf4+ {[%clk 0:00:29]} 24. gxf4 {[%clk 0:01:38]}  gxf4 {[%clk 0:00:30]} 25. Bc1 {[%clk 0:01:31]}  Bc5 {[%clk 0:00:29]} 26. Rh1 {[%clk 0:01:27]}  Rg8+ {[%clk 0:00:28]} 27. Kf1 {[%clk 0:01:27]}  Rg6 {[%clk 0:00:27]} 28. Rh5 {[%clk 0:00:52]}  Rdg8 {[%clk 0:00:18]} 29. Qh3 {[%clk 0:00:50]}  Bf8 {[%clk 0:00:18]} 30. Ke2 {[%clk 0:00:48]}  Qd7 {[%clk 0:00:15]} 31. Bd2 {[%clk 0:00:44]}  Ng5 {[%clk 0:00:12]} 32. Qd3 {[%clk 0:00:43]}  Qe6 {[%clk 0:00:10]} 33. Rah1 {[%clk 0:00:41]}  Bg7 {[%clk 0:00:10]} 34. b3 {[%clk 0:00:38]}  Bf8 {[%clk 0:00:10]} 35. Qc4 {[%clk 0:00:36]}  Qd7 {[%clk 0:00:08]} 36. Qd3 {[%clk 0:00:23]}  Qe6 {[%clk 0:00:08]} 37. Kd1 {[%clk 0:00:21]}  Bg7 {[%clk 0:00:05]} 38. Kc1 {[%clk 0:00:20]}  b5 {[%clk 0:00:04]} 39. axb5 {[%clk 0:00:19]}  cxb5 {[%clk 0:00:05]} 40. Qxb5 {[%clk 0:00:18]}  Rc8 {[%clk 0:00:04]} 41. Qd5 {[%clk 0:00:16]}  Qa6 {[%clk 0:00:03]} 42. Kb2 {[%clk 0:00:16]}  Qe6 {[%clk 0:00:03]} 43. Nxg7 {[%clk 0:00:14]}  Qxd5 {[%clk 0:00:03]} 44. exd5 {[%clk 0:00:12]}  Kxg7 {[%clk 0:00:03]} 45. f3 {[%clk 0:00:12]}  f5 {[%clk 0:00:03]} 46. Rf1 {[%clk 0:00:08]}  Rd8 {[%clk 0:00:03]} 47. Be1 {[%clk 0:00:07]}  a5 {[%clk 0:00:04]} 48. Bh4 {[%clk 0:00:07]}  Rc8 {[%clk 0:00:03]} 49. Bxg5 {[%clk 0:00:07]}  hxg5 {[%clk 0:00:04]} 50. Rg1 {[%clk 0:00:06]}  Kf6 {[%clk 0:00:04]} 51. Rh6 {[%clk 0:00:06]}  Rxh6 {[%clk 0:00:04]} 52. Nb5 {[%clk 0:00:05]}  Rh2 {[%clk 0:00:04]} 53. Rc1 {[%clk 0:00:05]}  g4 {[%clk 0:00:04]} 54. d6 {[%clk 0:00:04]}  g3 {[%clk 0:00:03]} 55. d7 {[%clk 0:00:02]}  Rd8 {[%clk 0:00:03]} 56. Rd1 {[%clk 0:00:02]}  g2 {[%clk 0:00:03]} 57. Rg1 {[%clk 0:00:00]}  Rxd7 {[%clk 0:00:03]} 0-1

[Event "December 19 Late 2023"]
[Site "https://www.chess.com"]
[Date "2023.12.19"]
[Round "7"]
[White "Filgueira, Hernan"]
[Black "Goltsev, Dmitry"]
[Result "0-1"]
[Board "44"]
[TimeControl "180+1"]
[WhiteFideId "101770"]
[BlackFideId "24176710"]
[WhiteElo "2363"]
[BlackElo "2370"]
[WhiteTeam "ARG"]
[BlackTeam "RUS"]
[WhiteClock "0:00:09"]
[BlackClock "0:00:16"]

1. e4 {[%clk 0:02:59]}  e6 {[%clk 0:02:58]} 2. d3 {[%clk 0:02:58]}  d5 {[%clk 0:02:58]} 3. Qe2 {[%clk 0:02:57]}  Bc5 {[%clk 0:02:57]} 4. Nf3 {[%clk 0:02:57]}  dxe4 {[%clk 0:02:57]} 5. dxe4 {[%clk 0:02:57]}  Nf6 {[%clk 0:02:57]} 6. h3 {[%clk 0:02:51]}  Nc6 {[%clk 0:02:56]} 7. c3 {[%clk 0:02:51]}  e5 {[%clk 0:02:56]} 8. Bg5 {[%clk 0:02:49]}  h6 {[%clk 0:02:55]} 9. Bh4 {[%clk 0:02:47]}  Be6 {[%clk 0:02:55]} 10. Nbd2 {[%clk 0:02:46]}  Qe7 {[%clk 0:02:52]} 11. Qb5 {[%clk 0:02:38]}  O-O {[%clk 0:02:23]} 12. Bxf6 {[%clk 0:02:31]}  gxf6 {[%clk 0:02:22]} 13. Be2 {[%clk 0:02:18]}  Rfd8 {[%clk 0:02:18]} 14. Qa4 {[%clk 0:02:05]}  a6 {[%clk 0:02:07]} 15. Qc2 {[%clk 0:01:56]}  Kh7 {[%clk 0:02:02]} 16. Nh4 {[%clk 0:01:53]}  f5 {[%clk 0:01:19]} 17. Nxf5 {[%clk 0:01:36]}  Qg5 {[%clk 0:01:17]} 18. O-O-O {[%clk 0:01:05]}  Bxf2 {[%clk 0:01:15]} 19. h4 {[%clk 0:01:04]}  Qxg2 {[%clk 0:01:12]} 20. Bf3 {[%clk 0:00:54]}  Qg6 {[%clk 0:01:01]} 21. Rdf1 {[%clk 0:00:40]}  Bc5 {[%clk 0:00:55]} 22. Kb1 {[%clk 0:00:35]}  b5 {[%clk 0:00:49]} 23. Rh2 {[%clk 0:00:33]}  Rg8 {[%clk 0:00:45]} 24. Nb3 {[%clk 0:00:31]}  Bb6 {[%clk 0:00:43]} 25. Qe2 {[%clk 0:00:25]}  Bc4 {[%clk 0:00:41]} 26. h5 {[%clk 0:00:17]}  Qg5 {[%clk 0:00:37]} 27. Qd1 {[%clk 0:00:17]}  Bxf1 {[%clk 0:00:37]} 28. Qxf1 {[%clk 0:00:18]}  Qg1 {[%clk 0:00:37]} 29. Rh1 {[%clk 0:00:18]}  Qxf1+ {[%clk 0:00:37]} 30. Rxf1 {[%clk 0:00:19]}  Rg1 {[%clk 0:00:36]} 31. Rxg1 {[%clk 0:00:19]}  Bxg1 {[%clk 0:00:37]} 32. Kc2 {[%clk 0:00:19]}  Rd8 {[%clk 0:00:37]} 33. Nc1 {[%clk 0:00:19]}  Bh2 {[%clk 0:00:37]} 34. Nd3 {[%clk 0:00:19]}  Bf4 {[%clk 0:00:36]} 35. Nc5 {[%clk 0:00:19]}  Rd2+ {[%clk 0:00:35]} 36. Kb3 {[%clk 0:00:19]}  Rf2 {[%clk 0:00:28]} 37. Bg4 {[%clk 0:00:18]}  a5 {[%clk 0:00:22]} 38. a4 {[%clk 0:00:18]}  bxa4+ {[%clk 0:00:21]} 39. Nxa4 {[%clk 0:00:18]}  Bc1 {[%clk 0:00:20]} 40. Bd1 {[%clk 0:00:15]}  Nd8 {[%clk 0:00:18]} 41. Bc2 {[%clk 0:00:15]}  Ne6 {[%clk 0:00:19]} 42. Bb1 {[%clk 0:00:14]}  Nc5+ {[%clk 0:00:17]} 43. Nxc5 {[%clk 0:00:13]}  Rxb2+ {[%clk 0:00:18]} 44. Kc4 {[%clk 0:00:14]}  Rxb1 {[%clk 0:00:19]} 45. Nd3 {[%clk 0:00:13]}  a4 {[%clk 0:00:18]} 46. Nxe5 {[%clk 0:00:13]}  a3 {[%clk 0:00:18]} 47. Nd4 {[%clk 0:00:11]}  a2 {[%clk 0:00:18]} 48. Nc2 {[%clk 0:00:12]}  a1=Q {[%clk 0:00:16]} 49. Nxa1 {[%clk 0:00:11]}  Rxa1 {[%clk 0:00:17]} 50. Nxf7 {[%clk 0:00:09]}  Ra5 {[%clk 0:00:16]} 0-1

[Event "December 19 Late 2023"]
[Site "https://www.chess.com"]
[Date "2023.12.19"]
[Round "7"]
[White "Mokshanov, Alexey"]
[Black "mightysmasher"]
[Result "0-1"]
[Board "45"]
[TimeControl "180+1"]
[WhiteFideId "24121657"]
[WhiteElo "2278"]
[BlackElo "2530"]
[WhiteTeam "RUS"]
[WhiteClock "0:00:23"]
[BlackClock "0:00:17"]

1. e4 {[%clk 0:03:00]}  e6 {[%clk 0:02:58]} 2. d4 {[%clk 0:03:00]}  d5 {[%clk 0:02:58]} 3. e5 {[%clk 0:03:01]}  c5 {[%clk 0:02:58]} 4. c3 {[%clk 0:03:01]}  Nc6 {[%clk 0:02:59]} 5. Nf3 {[%clk 0:03:02]}  Qb6 {[%clk 0:02:58]} 6. a3 {[%clk 0:03:02]}  Bd7 {[%clk 0:02:58]} 7. b4 {[%clk 0:03:02]}  cxd4 {[%clk 0:02:58]} 8. cxd4 {[%clk 0:03:03]}  Rc8 {[%clk 0:02:58]} 9. Be3 {[%clk 0:03:03]}  Nh6 {[%clk 0:02:54]} 10. Bd3 {[%clk 0:03:03]}  Ng4 {[%clk 0:02:54]} 11. O-O {[%clk 0:03:03]}  Nxe3 {[%clk 0:02:54]} 12. fxe3 {[%clk 0:03:04]}  Be7 {[%clk 0:02:54]} 13. Nbd2 {[%clk 0:02:51]}  O-O {[%clk 0:02:49]} 14. Kh1 {[%clk 0:02:51]}  h6 {[%clk 0:02:48]} 15. Nb3 {[%clk 0:02:42]}  a5 {[%clk 0:02:41]} 16. Nc5 {[%clk 0:02:39]}  Be8 {[%clk 0:02:37]} 17. Rb1 {[%clk 0:02:26]}  axb4 {[%clk 0:02:36]} 18. axb4 {[%clk 0:02:26]}  Qc7 {[%clk 0:02:21]} 19. e4 {[%clk 0:02:14]}  dxe4 {[%clk 0:02:19]} 20. Nxe4 {[%clk 0:02:08]}  Nxb4 {[%clk 0:02:17]} 21. Be2 {[%clk 0:02:00]}  Nc2 {[%clk 0:02:12]} 22. Qd2 {[%clk 0:01:47]}  b5 {[%clk 0:01:45]} 23. Bd3 {[%clk 0:01:35]}  Na3 {[%clk 0:01:38]} 24. Rbc1 {[%clk 0:01:32]}  Nc4 {[%clk 0:01:37]} 25. Qf2 {[%clk 0:01:26]}  Kh8 {[%clk 0:01:25]} 26. Qe2 {[%clk 0:01:07]}  Bc6 {[%clk 0:01:20]} 27. Ng3 {[%clk 0:01:06]}  Qd7 {[%clk 0:01:15]} 28. Nh5 {[%clk 0:01:03]}  Bxf3 {[%clk 0:01:08]} 29. Rxf3 {[%clk 0:00:57]}  Qxd4 {[%clk 0:01:04]} 30. Re1 {[%clk 0:00:53]}  Bb4 {[%clk 0:00:55]} 31. Nxg7 {[%clk 0:00:50]}  Bxe1 {[%clk 0:00:25]} 32. Qxe1 {[%clk 0:00:38]}  Qxe5 {[%clk 0:00:19]} 33. Qh4 {[%clk 0:00:30]}  Qxg7 {[%clk 0:00:19]} 34. Rf6 {[%clk 0:00:31]}  Ne5 {[%clk 0:00:16]} 35. Rxh6+ {[%clk 0:00:30]}  Kg8 {[%clk 0:00:17]} 36. Bh7+ {[%clk 0:00:31]}  Qxh7 {[%clk 0:00:17]} 37. Rxh7 {[%clk 0:00:23]}  Rc1+ {[%clk 0:00:17]} 0-1

[Event "December 19 Late 2023"]
[Site "https://www.chess.com"]
[Date "2023.12.19"]
[Round "7"]
[White "Solon, Nathan"]
[Black "Crasyhealer"]
[Result "1-0"]
[Board "46"]
[TimeControl "180+1"]
[WhiteFideId "2017229"]
[WhiteElo "2668"]
[BlackElo "2486"]
[WhiteTeam "USA"]
[WhiteClock "0:00:12"]
[BlackClock "0:00:06"]

1. d4 {[%clk 0:02:56]}  Nf6 {[%clk 0:02:54]} 2. Bf4 {[%clk 0:02:55]}  d6 {[%clk 0:02:53]} 3. Nf3 {[%clk 0:02:55]}  g6 {[%clk 0:02:54]} 4. e3 {[%clk 0:02:49]}  Bg7 {[%clk 0:02:54]} 5. h3 {[%clk 0:02:50]}  O-O {[%clk 0:02:54]} 6. Be2 {[%clk 0:02:50]}  Nfd7 {[%clk 0:02:51]} 7. Bh2 {[%clk 0:02:49]}  c5 {[%clk 0:02:48]} 8. O-O {[%clk 0:02:48]}  Nc6 {[%clk 0:02:48]} 9. c3 {[%clk 0:02:47]}  e5 {[%clk 0:02:44]} 10. Na3 {[%clk 0:02:34]}  cxd4 {[%clk 0:01:52]} 11. cxd4 {[%clk 0:02:30]}  e4 {[%clk 0:01:52]} 12. Nd2 {[%clk 0:02:29]}  d5 {[%clk 0:01:52]} 13. Nb5 {[%clk 0:02:28]}  Nb6 {[%clk 0:01:40]} 14. Rc1 {[%clk 0:02:24]}  Be6 {[%clk 0:01:38]} 15. Nd6 {[%clk 0:02:14]}  Qd7 {[%clk 0:01:33]} 16. Nb3 {[%clk 0:01:59]}  Qe7 {[%clk 0:01:02]} 17. Nc5 {[%clk 0:01:52]}  Nd8 {[%clk 0:00:58]} 18. Nb5 {[%clk 0:01:47]}  Qg5 {[%clk 0:00:41]} 19. Bf4 {[%clk 0:01:37]}  Qf6 {[%clk 0:00:38]} 20. Bd6 {[%clk 0:01:23]}  Qg5 {[%clk 0:00:29]} 21. Nxe6 {[%clk 0:01:18]}  Nxe6 {[%clk 0:00:26]} 22. Bxf8 {[%clk 0:01:17]}  Rxf8 {[%clk 0:00:26]} 23. Nc7 {[%clk 0:01:14]}  Nd8 {[%clk 0:00:19]} 24. Qb3 {[%clk 0:01:12]}  f5 {[%clk 0:00:19]} 25. f4 {[%clk 0:01:07]}  exf3 {[%clk 0:00:19]} 26. Bxf3 {[%clk 0:01:07]}  f4 {[%clk 0:00:14]} 27. Nxd5 {[%clk 0:01:05]}  Kh8 {[%clk 0:00:14]} 28. Nxf4 {[%clk 0:01:02]}  Bxd4 {[%clk 0:00:14]} 29. Nxg6+ {[%clk 0:00:50]}  Qxg6 {[%clk 0:00:10]} 30. exd4 {[%clk 0:00:51]}  Nf7 {[%clk 0:00:10]} 31. Qc2 {[%clk 0:00:42]}  Qg7 {[%clk 0:00:09]} 32. d5 {[%clk 0:00:39]}  Ng5 {[%clk 0:00:09]} 33. Qc3 {[%clk 0:00:27]}  Rf6 {[%clk 0:00:09]} 34. Bg4 {[%clk 0:00:22]}  Nxd5 {[%clk 0:00:08]} 35. Qc8+ {[%clk 0:00:21]}  Qg8 {[%clk 0:00:08]} 36. Qxg8+ {[%clk 0:00:20]}  Kxg8 {[%clk 0:00:09]} 37. Rxf6 {[%clk 0:00:19]}  Nxf6 {[%clk 0:00:10]} 38. Rc7 {[%clk 0:00:18]}  b5 {[%clk 0:00:07]} 39. Rxa7 {[%clk 0:00:18]}  Nge4 {[%clk 0:00:05]} 40. Rb7 {[%clk 0:00:17]}  Nd6 {[%clk 0:00:04]} 41. Rb6 {[%clk 0:00:16]}  Nfe4 {[%clk 0:00:05]} 42. Bf3 {[%clk 0:00:14]}  Nc4 {[%clk 0:00:05]} 43. Rxb5 {[%clk 0:00:13]}  Ned6 {[%clk 0:00:06]} 44. Bd5+ {[%clk 0:00:12]}  Kg7 {[%clk 0:00:07]} 45. Bxc4 {[%clk 0:00:13]}  Nxc4 {[%clk 0:00:06]} 46. a4 {[%clk 0:00:12]} 1-0

[Event "December 19 Late 2023"]
[Site "https://www.chess.com"]
[Date "2023.12.19"]
[Round "7"]
[White "Manukyan, Sargis A."]
[Black "Kazmaier, Daniel"]
[Result "0-1"]
[Board "47"]
[TimeControl "180+1"]
[WhiteFideId "13303970"]
[BlackFideId "2606089"]
[WhiteElo "2186"]
[BlackElo "2482"]
[WhiteTeam "ARM"]
[BlackTeam "CAN"]
[WhiteClock "0:00:14"]
[BlackClock "0:00:23"]

1. d4 {[%clk 0:03:00]}  g6 {[%clk 0:02:58]} 2. c4 {[%clk 0:03:01]}  Bg7 {[%clk 0:02:58]} 3. Nc3 {[%clk 0:03:02]}  d6 {[%clk 0:02:57]} 4. Nf3 {[%clk 0:03:02]}  f5 {[%clk 0:02:57]} 5. e4 {[%clk 0:02:57]}  fxe4 {[%clk 0:02:48]} 6. Nxe4 {[%clk 0:02:57]}  Nf6 {[%clk 0:02:49]} 7. Nxf6+ {[%clk 0:02:56]}  exf6 {[%clk 0:02:49]} 8. Qe2+ {[%clk 0:02:54]}  Qe7 {[%clk 0:02:38]} 9. Qxe7+ {[%clk 0:02:54]}  Kxe7 {[%clk 0:02:39]} 10. Bd3 {[%clk 0:02:55]}  Bg4 {[%clk 0:02:36]} 11. Nd2 {[%clk 0:02:43]}  Nc6 {[%clk 0:02:33]} 12. Nb3 {[%clk 0:02:43]}  a5 {[%clk 0:02:19]} 13. f3 {[%clk 0:02:40]}  a4 {[%clk 0:02:15]} 14. Nd2 {[%clk 0:02:37]}  Bd7 {[%clk 0:02:12]} 15. d5 {[%clk 0:02:37]}  Ne5 {[%clk 0:02:06]} 16. Be2 {[%clk 0:02:37]}  f5 {[%clk 0:01:55]} 17. a3 {[%clk 0:02:34]}  Bh6 {[%clk 0:01:36]} 18. Kf2 {[%clk 0:02:32]}  c5 {[%clk 0:01:28]} 19. Nf1 {[%clk 0:02:26]}  Bxc1 {[%clk 0:01:25]} 20. Rxc1 {[%clk 0:02:27]}  f4 {[%clk 0:01:25]} 21. Nd2 {[%clk 0:02:21]}  Bf5 {[%clk 0:01:24]} 22. g3 {[%clk 0:02:20]}  g5 {[%clk 0:01:21]} 23. Rhg1 {[%clk 0:02:07]}  Kf6 {[%clk 0:01:19]} 24. Rc3 {[%clk 0:01:48]}  h5 {[%clk 0:01:07]} 25. h4 {[%clk 0:01:44]}  fxg3+ {[%clk 0:01:04]} 26. Rxg3 {[%clk 0:01:40]}  gxh4 {[%clk 0:01:03]} 27. Rg1 {[%clk 0:01:40]}  Rhg8 {[%clk 0:00:52]} 28. Rh1 {[%clk 0:01:37]}  Ng6 {[%clk 0:00:51]} 29. Bd3 {[%clk 0:01:31]}  Bxd3 {[%clk 0:00:45]} 30. Rxd3 {[%clk 0:01:32]}  Nf4 {[%clk 0:00:45]} 31. Ne4+ {[%clk 0:01:25]}  Ke5 {[%clk 0:00:42]} 32. Rd2 {[%clk 0:01:09]}  Rg2+ {[%clk 0:00:41]} 33. Ke3 {[%clk 0:01:09]}  Rxd2 {[%clk 0:00:38]} 34. Nxd2 {[%clk 0:01:10]}  h3 {[%clk 0:00:36]} 35. Ne4 {[%clk 0:00:47]}  Rg8 {[%clk 0:00:35]} 36. Rh2 {[%clk 0:00:43]}  Rg2 {[%clk 0:00:32]} 37. Rxg2 {[%clk 0:00:34]}  hxg2 {[%clk 0:00:32]} 38. Kf2 {[%clk 0:00:34]}  h4 {[%clk 0:00:29]} 39. Ng5 {[%clk 0:00:35]}  h3 {[%clk 0:00:25]} 40. Nxh3 {[%clk 0:00:14]}  Nxh3+ {[%clk 0:00:26]} 41. Kxg2 {[%clk 0:00:15]}  Nf4+ {[%clk 0:00:27]} 42. Kg3 {[%clk 0:00:15]}  Nd3 {[%clk 0:00:27]} 43. Kg4 {[%clk 0:00:16]}  b6 {[%clk 0:00:25]} 44. Kg5 {[%clk 0:00:16]}  Kd4 {[%clk 0:00:20]} 45. f4 {[%clk 0:00:16]}  Nxf4 {[%clk 0:00:21]} 46. Kxf4 {[%clk 0:00:16]}  Kxc4 {[%clk 0:00:21]} 47. Ke4 {[%clk 0:00:17]}  b5 {[%clk 0:00:21]} 48. Ke3 {[%clk 0:00:15]}  Kxd5 {[%clk 0:00:22]} 49. Kd3 {[%clk 0:00:15]}  b4 {[%clk 0:00:22]} 50. Kc2 {[%clk 0:00:15]}  Kc4 {[%clk 0:00:22]} 51. Kd2 {[%clk 0:00:14]}  d5 {[%clk 0:00:22]} 52. Kc2 {[%clk 0:00:14]}  d4 {[%clk 0:00:23]} 53. axb4 {[%clk 0:00:14]}  cxb4 {[%clk 0:00:23]} 54. Kc1 {[%clk 0:00:14]}  Kb3 {[%clk 0:00:24]} 55. Kb1 {[%clk 0:00:15]}  d3 {[%clk 0:00:24]} 56. Kc1 {[%clk 0:00:15]}  a3 {[%clk 0:00:23]} 57. Kb1 {[%clk 0:00:15]}  d2 {[%clk 0:00:23]} 58. bxa3 {[%clk 0:00:14]}  d1=Q# {[%clk 0:00:23]} 0-1

[Event "December 19 Late 2023"]
[Site "https://www.chess.com"]
[Date "2023.12.19"]
[Round "7"]
[White "petr577"]
[Black "Sturt, Raven"]
[Result "1-0"]
[Board "48"]
[TimeControl "180+1"]
[BlackFideId "2007304"]
[WhiteElo "2334"]
[BlackElo "2408"]
[BlackTeam "USA"]
[WhiteClock "0:01:48"]
[BlackClock "0:02:24"]

1. e4 {[%clk 0:03:00]}  e5 {[%clk 0:02:59]} 2. Nf3 {[%clk 0:03:01]}  Nc6 {[%clk 0:02:59]} 3. Bb5 {[%clk 0:03:01]}  f5 {[%clk 0:02:59]} 4. d3 {[%clk 0:03:00]}  fxe4 {[%clk 0:02:59]} 5. dxe4 {[%clk 0:03:01]}  Nf6 {[%clk 0:02:59]} 6. Nc3 {[%clk 0:02:59]}  Bc5 {[%clk 0:02:58]} 7. Qd3 {[%clk 0:03:00]}  d6 {[%clk 0:02:55]} 8. O-O {[%clk 0:02:54]}  Bg4 {[%clk 0:02:54]} 9. h3 {[%clk 0:02:37]}  Bh5 {[%clk 0:02:52]} 10. Ng5 {[%clk 0:02:37]}  Qd7 {[%clk 0:02:51]} 11. Nd5 {[%clk 0:02:26]}  h6 {[%clk 0:02:47]} 12. Ne6 {[%clk 0:02:25]}  Rc8 {[%clk 0:02:43]} 13. Nxc5 {[%clk 0:02:17]}  dxc5 {[%clk 0:02:42]} 14. Nxf6+ {[%clk 0:02:13]}  gxf6 {[%clk 0:02:42]} 15. Qxd7+ {[%clk 0:02:13]}  Kxd7 {[%clk 0:02:42]} 16. Be3 {[%clk 0:02:14]}  Kd6 {[%clk 0:02:41]} 17. g4 {[%clk 0:01:51]}  Be8 {[%clk 0:02:35]} 18. Rad1+ {[%clk 0:01:49]}  Ke6 {[%clk 0:02:27]} 19. Bc4+ {[%clk 0:01:48]}  Ke7 {[%clk 0:02:24]} 20. Bxc5# {[%clk 0:01:48]} 1-0

[Event "December 19 Late 2023"]
[Site "https://www.chess.com"]
[Date "2023.12.19"]
[Round "7"]
[White "Kucza, Karol"]
[Black "Tao, Sihan"]
[Result "0-1"]
[Board "54"]
[TimeControl "180+1"]
[WhiteFideId "1159755"]
[BlackFideId "30982677"]
[WhiteElo "2307"]
[BlackElo "1943"]
[WhiteTeam "POL"]
[BlackTeam "USA"]
[WhiteClock "0:00:00"]
[BlackClock "0:00:18"]

1. e4 {[%clk 0:02:57]}  c5 {[%clk 0:02:59]} 2. Nf3 {[%clk 0:02:56]}  d6 {[%clk 0:02:59]} 3. d4 {[%clk 0:02:57]}  cxd4 {[%clk 0:03:00]} 4. Nxd4 {[%clk 0:02:57]}  Nf6 {[%clk 0:03:01]} 5. Nc3 {[%clk 0:02:57]}  Nc6 {[%clk 0:03:01]} 6. Bg5 {[%clk 0:02:58]}  e6 {[%clk 0:03:01]} 7. Qd2 {[%clk 0:02:56]}  a6 {[%clk 0:03:02]} 8. O-O-O {[%clk 0:02:57]}  Bd7 {[%clk 0:03:02]} 9. f4 {[%clk 0:02:57]}  Be7 {[%clk 0:03:02]} 10. Nf3 {[%clk 0:02:55]}  b5 {[%clk 0:03:02]} 11. Bxf6 {[%clk 0:02:55]}  gxf6 {[%clk 0:03:03]} 12. Bd3 {[%clk 0:02:54]}  Qb6 {[%clk 0:03:03]} 13. Kb1 {[%clk 0:02:53]}  O-O-O {[%clk 0:03:04]} 14. f5 {[%clk 0:02:49]}  Kb8 {[%clk 0:03:03]} 15. Ne2 {[%clk 0:02:48]}  Ne5 {[%clk 0:02:50]} 16. Nfd4 {[%clk 0:02:39]}  Rc8 {[%clk 0:02:39]} 17. Rhf1 {[%clk 0:02:38]}  Rhg8 {[%clk 0:02:36]} 18. g3 {[%clk 0:02:39]}  h5 {[%clk 0:02:36]} 19. fxe6 {[%clk 0:02:36]}  fxe6 {[%clk 0:02:37]} 20. c3 {[%clk 0:02:35]}  Ng6 {[%clk 0:02:10]} 21. Bc2 {[%clk 0:02:19]}  Ka7 {[%clk 0:02:03]} 22. Bb3 {[%clk 0:02:19]}  d5 {[%clk 0:01:47]} 23. exd5 {[%clk 0:02:18]}  e5 {[%clk 0:01:47]} 24. Nf5 {[%clk 0:02:19]}  Bc5 {[%clk 0:01:45]} 25. d6 {[%clk 0:01:57]}  Rgd8 {[%clk 0:01:42]} 26. Qh6 {[%clk 0:01:57]}  Nf4 {[%clk 0:01:25]} 27. gxf4 {[%clk 0:01:07]}  Bxf5+ {[%clk 0:01:24]} 28. Ka1 {[%clk 0:01:04]}  Bg4 {[%clk 0:01:04]} 29. d7 {[%clk 0:00:54]}  Rc7 {[%clk 0:00:59]} 30. Rde1 {[%clk 0:00:44]}  Bf2 {[%clk 0:00:53]} 31. fxe5 {[%clk 0:00:18]}  Bxe1 {[%clk 0:00:51]} 32. Rxe1 {[%clk 0:00:19]}  fxe5 {[%clk 0:00:49]} 33. Qg5 {[%clk 0:00:12]}  Rcxd7 {[%clk 0:00:47]} 34. Ng3 {[%clk 0:00:08]}  Qf2 {[%clk 0:00:29]} 35. Rb1 {[%clk 0:00:08]}  Qxh2 {[%clk 0:00:29]} 36. Nxh5 {[%clk 0:00:07]}  Qxh5 {[%clk 0:00:28]} 37. Qe3+ {[%clk 0:00:08]}  Kb7 {[%clk 0:00:20]} 38. Qe4+ {[%clk 0:00:08]}  Kb8 {[%clk 0:00:21]} 39. Qc6 {[%clk 0:00:07]}  Rd6 {[%clk 0:00:19]} 40. Qc5 {[%clk 0:00:07]}  Qf7 {[%clk 0:00:19]} 41. Qxe5 {[%clk 0:00:06]}  Qc7 {[%clk 0:00:19]} 42. Qf4 {[%clk 0:00:04]}  Bc8 {[%clk 0:00:19]} 43. Qb4 {[%clk 0:00:03]}  Be6 {[%clk 0:00:18]} 44. Bc2 {[%clk 0:00:01]}  Bc8 {[%clk 0:00:19]} 45. a4 {[%clk 0:00:00]}  Bb7 {[%clk 0:00:18]} 0-1